bitfinex/quotes_BTCUSD_20250814
["timestamp","ask_amount","ask_price","bid_price","bid_amount"]
[1755184006253,0.25389119,118670.0,118660.0,1.16697622]
[1755184006462,1.03736686,118670.0,118660.0,0.99]
[1755184006661,0.73140784,118670.0,118660.0,0.99]
[1755184006861,1.38926201,118670.0,118660.0,0.99]
[1755184007073,1.38926201,118670.0,118660.0,1.15854879]
[1755184007074,0.42272325,118670.0,118660.0,1.15854879]
[1755184007349,0.59125784,118670.0,118660.0,1.15854879]
[1755184007543,0.59448784,118670.0,118660.0,0.99]
[1755184007750,0.61024498,118670.0,118660.0,0.99]
[1755184007941,0.59448784,118670.0,118660.0,0.99]
[1755184008419,0.61024464,118670.0,118660.0,1.15954879]
[1755184008764,0.61024464,118670.0,118660.0,0.991]
[1755184008984,1.26841353,118670.0,118660.0,0.991]
[1755184009383,0.62245451,118670.0,118660.0,0.991]
[1755184009584,1.28586255,118670.0,118660.0,0.991]
[1755184010179,1.28586357,118670.0,118660.0,0.992]
[1755184010601,1.28586357,118670.0,118660.0,0.991]
[1755184010836,6.28586357,118670.0,118660.0,0.60883385]
[1755184011193,6.31086357,118670.0,118660.0,0.37482807]
[1755184011399,6.32464445,118670.0,118660.0,0.27659234]
[1755184012040,6.48538879,118670.0,118660.0,0.27659234]
[1755184012242,6.49038879,118670.0,118660.0,0.27659234]
[1755184012415,6.35430879,118670.0,118660.0,0.27659234]
[1755184012638,6.32930879,118670.0,118660.0,0.27659234]
[1755184012850,6.46668445,118670.0,118660.0,0.27659234]
[1755184013153,6.49534879,118670.0,118660.0,0.27659234]
[1755184014050,6.47168445,118670.0,118660.0,0.27659234]
[1755184014180,6.46077836,118670.0,118660.0,0.27659234]
[1755184014603,5.79381934,118670.0,118660.0,0.27659234]
[1755184014813,6.46477836,118670.0,118660.0,0.27659234]
[1755184015227,6.4883627,118670.0,118660.0,0.27659234]
[1755184015453,6.46926045,118670.0,118660.0,0.27659234]
[1755184015662,6.49426045,118670.0,118660.0,0.27659234]
[1755184015886,6.49456445,118670.0,118660.0,0.27659234]
[1755184016050,6.49000236,118670.0,118660.0,0.27659234]
[1755184016474,6.5136667,118670.0,118660.0,0.27659234]
[1755184016912,6.49000236,118670.0,118660.0,0.27659234]
[1755184017843,6.48995006,118670.0,118660.0,0.27659234]
[1755184019207,6.46503006,118670.0,118660.0,0.27659234]
[1755184019821,5.81907104,118670.0,118660.0,0.27659234]
[1755184020066,6.32799006,118670.0,118660.0,0.27659234]
[1755184020226,6.46491006,118670.0,118660.0,0.27659234]
[1755184020634,6.42223704,118670.0,118660.0,0.27659234]
[1755184020833,6.41437694,118670.0,118660.0,0.27659234]
[1755184021496,6.43182596,118670.0,118660.0,0.27659234]
[1755184022052,6.42682596,118670.0,118660.0,0.27659234]
[1755184022259,6.43082596,118670.0,118660.0,0.27659234]
[1755184022912,6.48136596,118670.0,118660.0,0.27659234]
[1755184023120,6.47736596,118670.0,118660.0,0.27659234]
[1755184023343,6.48036596,118670.0,118660.0,0.27659234]
[1755184023723,5.83440694,118670.0,118660.0,0.27659234]
[1755184023925,6.48036596,118670.0,118660.0,0.27659234]
[1755184024478,6.29282596,118670.0,118660.0,0.27659234]
[1755184024663,6.42974596,118670.0,118660.0,0.27659234]
[1755184025091,6.44784308,118670.0,118660.0,0.27659234]
[1755184025220,6.42970596,118670.0,118660.0,0.27659234]
[1755184026368,0.62618792,118670.0,118660.0,0.27974234]
[1755184026572,0.62618792,118670.0,118660.0,0.35439234]
[1755184026573,0.76298792,118670.0,118660.0,0.35439234]
[1755184026771,0.2544005,118670.0,118660.0,0.52294113]
[1755184026944,0.42293509,118670.0,118660.0,0.52294113]
[1755184027144,0.41993509,118670.0,118660.0,0.52294113]
[1755184027337,0.75993509,118670.0,118660.0,0.52294113]
[1755184027673,0.42093509,118670.0,118660.0,0.52294113]
[1755184028041,0.1156405,118670.0,118660.0,0.52294113]
[1755184028252,0.08772325,118670.0,118660.0,0.52294113]
[1755184028463,0.001,118670.0,118660.0,1.26366839]
[1755184028676,0.001,118670.0,118660.0,1.40030839]
[1755184028893,0.00014779,118700.0,118690.0,0.16850619]
[1755184029091,0.00014779,118700.0,118690.0,0.38324619]
[1755184029092,0.08287104,118700.0,118690.0,0.38324619]
[1755184029289,0.00014779,118700.0,118690.0,1.02920521]
[1755184029627,0.00014779,118700.0,118690.0,1.11168964]
[1755184030439,0.00014779,118700.0,118690.0,0.46573062]
[1755184030646,0.00014779,118700.0,118690.0,1.11168964]
[1755184031069,0.00014779,118700.0,118690.0,0.32889062]
[1755184031275,0.00014779,118700.0,118690.0,0.46717062]
[1755184031878,0.00014779,118700.0,118690.0,0.24740619]
[1755184032021,0.00014779,118700.0,118690.0,0.41016719]
[1755184032223,0.08287104,118700.0,118690.0,0.38504619]
[1755184032418,0.08287104,118700.0,118690.0,0.38404619]
[1755184032809,0.02944989,118730.0,118720.0,0.16846361]
[1755184033012,0.08272325,118730.0,118720.0,0.38428361]
[1755184033622,0.05209803,118750.0,118740.0,0.16843523]
[1755184033825,0.08272325,118750.0,118740.0,0.38441523]
[1755184034994,0.08287134,118750.0,118740.0,0.38441523]
[1755184036180,0.08487134,118750.0,118740.0,0.38441523]
[1755184036669,0.08687134,118750.0,118740.0,0.38441523]
[1755184036823,0.08287134,118750.0,118740.0,0.38441523]
[1755184037045,0.08487134,118750.0,118740.0,0.38441523]
[1755184037468,0.08587134,118750.0,118740.0,0.38441523]
[1755184037899,0.08587134,118750.0,118740.0,0.30651523]
[1755184038234,0.25429239,118750.0,118730.0,0.16843757]
[1755184038445,0.02667256,118750.0,118740.0,0.16843523]
[1755184038764,0.17156914,118750.0,118730.0,0.30831757]
[1755184038970,0.16843523,118740.0,118720.0,0.18013679]
[1755184039170,0.16843523,118740.0,118720.0,0.32009679]
[1755184039373,0.16844942,118730.0,118720.0,0.18013679]
[1755184039591,0.19498419,118740.0,118720.0,0.30842361]
[1755184039808,0.08272325,118730.0,118720.0,0.30842361]
[1755184040033,0.16846361,118720.0,118710.0,0.1768898]
[1755184040244,0.25118686,118720.0,118710.0,0.13992]
[1755184040444,0.09840623,118720.0,118710.0,0.3083978]
[1755184040649,0.08272325,118720.0,118710.0,0.3083978]
[1755184041088,0.08172325,118720.0,118710.0,0.3083978]
[1755184041649,0.08372325,118720.0,118710.0,0.3083978]
[1755184042292,0.08372325,118720.0,118710.0,0.3862978]
[1755184042488,0.08372325,118720.0,118710.0,0.3083978]
[1755184042692,0.25622686,118720.0,118700.0,0.31677374]
[1755184043077,0.25622686,118720.0,118710.0,0.1684778]
[1755184043560,0.1684778,118710.0,118690.0,0.16850619]
[1755184043771,0.1715178,118710.0,118700.0,0.30845199]
[1755184044048,0.1715178,118710.0,118690.0,0.30842619]
[1755184044179,0.08272325,118700.0,118690.0,0.30842619]
[1755184044569,0.08272325,118700.0,118690.0,0.30838619]
[1755184044777,0.08272325,118700.0,118690.0,0.17099814]
[1755184044984,0.08272325,118700.0,118690.0,0.16899814]
[1755184045854,0.08272325,118700.0,118690.0,0.16999814]
[1755184046332,0.08272325,118700.0,118690.0,0.16899814]
[1755184046535,0.08272325,118700.0,118690.0,0.17099814]
[1755184046712,0.08272325,118700.0,118690.0,0.24889814]
[1755184046915,0.08272325,118700.0,118690.0,0.25730298]
[1755184047335,0.08272325,118700.0,118690.0,0.24889814]
[1755184047911,0.08272325,118700.0,118690.0,0.89485716]
[1755184048114,0.15552462,118720.0,118710.0,0.1684778]
[1755184048321,0.08535549,118720.0,118710.0,0.3083178]
[1755184048533,0.2568591,118720.0,118710.0,0.1684778]
[1755184048735,0.26987148,118720.0,118710.0,0.1684778]
[1755184049343,0.27087148,118720.0,118710.0,0.1684778]
[1755184050873,0.27187148,118720.0,118710.0,0.1684778]
[1755184051338,0.1684778,118710.0,118700.0,0.30835961]
[1755184051547,0.25424105,118710.0,118700.0,0.16847961]
[1755184051754,0.26988567,118710.0,118700.0,0.16847961]
[1755184052205,0.10140787,118710.0,118700.0,0.16847961]
[1755184052417,0.08272325,118710.0,118700.0,0.16847961]
[1755184053428,0.09839077,118710.0,118700.0,0.16847961]
[1755184054795,0.26686857,118710.0,118700.0,0.16847961]
[1755184054991,0.09839077,118710.0,118700.0,0.16847961]
[1755184055603,0.09839077,118710.0,118700.0,0.17172961]
[1755184055800,0.09839077,118710.0,118700.0,0.30275192]
[1755184056005,0.09839077,118710.0,118700.0,0.24637961]
[1755184056229,0.01566752,118710.0,118700.0,0.90386911]
[1755184058091,0.01566752,118710.0,118700.0,0.90486911]
[1755184058490,0.80659751,118750.0,118740.0,0.16843523]
[1755184058773,0.76493409,118750.0,118740.0,0.16843523]
[1755184058975,0.77656032,118750.0,118740.0,0.16843523]
[1755184059278,0.75391218,118750.0,118740.0,0.16843523]
[1755184059611,0.75406027,118750.0,118740.0,0.16843523]
[1755184059826,0.68639841,118750.0,118740.0,0.16843523]
[1755184060447,0.50635079,118750.0,118740.0,0.16843523]
[1755184060650,0.49792974,118750.0,118740.0,0.16843523]
[1755184060854,0.15792974,118750.0,118740.0,0.16843523]
[1755184061052,0.16092974,118750.0,118740.0,0.16843523]
[1755184061261,0.18359354,118750.0,118740.0,0.16843523]
[1755184061468,0.18361717,118750.0,118740.0,0.16843523]
[1755184061914,0.15541965,118750.0,118740.0,0.16843523]
[1755184062071,0.14755095,118750.0,118740.0,0.16843523]
[1755184062488,0.15541965,118750.0,118740.0,0.16843523]
[1755184062841,0.15220965,118750.0,118740.0,0.30875523]
[1755184062981,0.12954585,118750.0,118740.0,0.31199523]
[1755184063179,0.12954585,118750.0,118740.0,0.39447966]
[1755184063432,0.11147744,118750.0,118740.0,0.39447966]
[1755184063841,0.11147744,118750.0,118740.0,0.31199523]
[1755184063982,0.02875419,118750.0,118740.0,0.38271523]
[1755184064198,0.02088549,118750.0,118740.0,1.02867425]
[1755184064818,0.01788549,118750.0,118740.0,1.36867425]
[1755184065019,0.0078687,118760.0,118750.0,0.16842105]
[1755184065253,0.0078687,118760.0,118750.0,0.9708245]
[1755184066193,0.04880091,118790.0,118780.0,0.16837851]
[1755184066336,0.11360378,118790.0,118780.0,0.30917851]
[1755184066542,0.11681378,118790.0,118780.0,0.30917851]
[1755184067444,0.09414998,118790.0,118780.0,0.30917851]
[1755184067612,0.09093998,118790.0,118780.0,0.35693563]
[1755184068266,0.09093998,118790.0,118780.0,0.30917851]
[1755184068998,0.09093998,118790.0,118780.0,0.31017851]
[1755184069400,0.09293998,118790.0,118780.0,0.31017851]
[1755184069604,0.09293998,118790.0,118780.0,0.31341851]
[1755184070037,0.09293998,118790.0,118780.0,0.31017851]
[1755184070232,0.09293998,118790.0,118780.0,0.35949387]
[1755184070645,0.09293998,118790.0,118780.0,0.31017851]
[1755184071325,0.08507128,118790.0,118780.0,0.31017851]
[1755184071518,0.08507128,118790.0,118780.0,0.31025851]
[1755184071681,0.08828128,118790.0,118780.0,0.31025851]
[1755184072078,0.09878067,118790.0,118780.0,0.16937851]
[1755184072280,0.08507128,118790.0,118780.0,0.19623043]
[1755184072697,0.08507128,118790.0,118780.0,0.16937851]
[1755184073489,0.08507128,118790.0,118780.0,0.17261851]
[1755184073693,0.00234803,118790.0,118780.0,0.24333851]
[1755184075771,0.00234803,118790.0,118780.0,0.88929753]
[1755184076536,0.00234803,118790.0,118780.0,0.24333851]
[1755184076820,0.00034803,118790.0,118780.0,0.29859563]
[1755184076979,0.01601129,118790.0,118780.0,0.43779563]
[1755184077186,0.01601129,118790.0,118780.0,0.43679563]
[1755184077586,0.01601129,118790.0,118780.0,0.44103563]
[1755184078106,0.0160102,118790.0,118780.0,0.44103563]
[1755184078489,0.0160102,118790.0,118780.0,0.43779563]
[1755184078758,0.0160102,118790.0,118780.0,0.36719563]
[1755184080049,0.0160102,118790.0,118780.0,0.36619563]
[1755184080572,0.09873345,118790.0,118780.0,0.31093851]
[1755184080966,0.09873345,118790.0,118780.0,0.30993851]
[1755184082884,0.10194345,118790.0,118780.0,0.30993851]
[1755184083461,0.10194345,118790.0,118780.0,0.16837851]
[1755184083660,0.10194345,118790.0,118770.0,0.16839269]
[1755184083661,0.16837851,118780.0,118770.0,0.16839269]
[1755184083919,0.16837851,118780.0,118770.0,0.14172]
[1755184083920,0.26997393,118780.0,118770.0,0.14172]
[1755184084111,0.26997393,118780.0,118770.0,0.31011269]
[1755184084112,0.91593295,118780.0,118770.0,0.31011269]
[1755184084408,0.26997393,118780.0,118770.0,0.31011269]
[1755184084615,0.10159542,118780.0,118770.0,0.31011269]
[1755184085147,0.10159542,118780.0,118770.0,0.31111269]
[1755184085577,0.10159542,118780.0,118770.0,0.34409517]
[1755184085986,0.26997393,118780.0,118770.0,0.34409517]
[1755184086190,0.10159542,118780.0,118770.0,0.34409517]
[1755184086413,0.1016129,118780.0,118770.0,0.34409517]
[1755184086594,0.1016129,118780.0,118770.0,0.31111269]
[1755184086802,0.26999141,118780.0,118770.0,0.31111269]
[1755184087069,0.1016129,118780.0,118770.0,0.31111269]
[1755184087299,0.1016129,118780.0,118770.0,0.31211269]
[1755184087701,0.26999141,118780.0,118770.0,0.31211269]
[1755184088804,0.1016129,118780.0,118770.0,0.31211269]
[1755184088984,0.0984029,118780.0,118770.0,0.31211269]
[1755184089331,0.09841925,118780.0,118770.0,0.31211269]
[1755184090333,0.09841925,118780.0,118770.0,0.31532269]
[1755184090735,0.015696,118780.0,118770.0,0.31532269]
[1755184090934,0.015696,118780.0,118770.0,1.03213171]
[1755184091169,0.015696,118780.0,118770.0,0.46865712]
[1755184092001,0.015696,118780.0,118770.0,1.11461614]
[1755184092200,0.00034803,118790.0,118780.0,0.16837851]
[1755184092383,0.01606133,118790.0,118780.0,0.88839753]
[1755184092610,0.01606133,118790.0,118780.0,0.28867081]
[1755184094122,0.01606133,118790.0,118780.0,0.24243851]
[1755184094359,0.01606133,118790.0,118780.0,0.16837851]
[1755184094794,0.01606133,118790.0,118780.0,0.31033851]
[1755184095733,0.01606133,118790.0,118780.0,0.31354851]
[1755184097648,0.10186458,118790.0,118780.0,0.16837851]
[1755184097948,0.10186458,118790.0,118780.0,0.31037851]
[1755184098143,0.10186458,118790.0,118780.0,0.16837851]
[1755184098355,0.16837851,118780.0,118770.0,0.16839243]
[1755184098592,0.16837851,118780.0,118770.0,0.14304]
[1755184098593,0.91585408,118780.0,118770.0,0.14304]
[1755184098814,0.26989506,118780.0,118770.0,0.16839269]
[1755184099241,0.10151655,118780.0,118770.0,0.16839269]
[1755184099689,0.11283867,118780.0,118770.0,0.16939269]
[1755184100732,0.28384809,118780.0,118770.0,0.17039269]
[1755184100933,0.28124042,118780.0,118770.0,0.17039269]
[1755184101575,1.26719944,118780.0,118770.0,0.002]
[1755184101796,0.78164944,118780.0,118770.0,0.002]
[1755184101996,1.42760846,118780.0,118770.0,0.002]
[1755184102205,0.78164944,118780.0,118770.0,0.002]
[1755184102411,1.43547933,118780.0,118770.0,0.001]
[1755184102595,0.50840043,118770.0,118750.0,0.31992028]
[1755184102796,0.08280325,118760.0,118750.0,0.31992028]
[1755184102991,0.09853979,118760.0,118750.0,0.31992028]
[1755184103771,0.09854421,118760.0,118750.0,0.31992028]
[1755184104772,0.09854421,118760.0,118750.0,0.36959801]
[1755184104985,0.09546421,118760.0,118750.0,0.36959801]
[1755184105486,0.09546421,118760.0,118750.0,0.37280801]
[1755184106095,0.09546421,118760.0,118750.0,0.32313028]
[1755184106508,0.09546421,118760.0,118750.0,0.31992028]
[1755184106720,0.09545859,118760.0,118750.0,0.31992028]
[1755184107112,0.01573534,118760.0,118750.0,0.32313028]
[1755184107357,0.01573534,118760.0,118750.0,0.39077028]
[1755184108652,0.09845859,118760.0,118750.0,0.39077028]
[1755184108863,0.10153859,118760.0,118750.0,0.17684028]
[1755184109873,0.09845859,118760.0,118750.0,0.17684028]
[1755184110490,0.09845859,118760.0,118750.0,0.22654201]
[1755184110923,0.09845859,118760.0,118750.0,0.17684028]
[1755184111151,0.01573534,118760.0,118750.0,0.8968593]
[1755184112120,0.00342803,118790.0,118780.0,0.16837851]
[1755184112353,0.08307128,118790.0,118780.0,0.31161851]
[1755184112595,0.08307128,118790.0,118780.0,0.35961838]
[1755184112813,0.08307128,118790.0,118780.0,0.31161851]
[1755184113031,0.08615128,118790.0,118780.0,0.31161851]
[1755184114195,0.08615128,118790.0,118780.0,0.16837851]
[1755184114398,0.90047464,118790.0,118780.0,0.31141851]
[1755184114635,0.25451562,118790.0,118780.0,0.31141851]
[1755184114867,0.08615128,118790.0,118780.0,0.31141851]
[1755184115556,0.08715128,118790.0,118780.0,0.31141851]
[1755184116014,0.08915128,118790.0,118780.0,0.31141851]
[1755184116827,0.08607128,118790.0,118780.0,0.31141851]
[1755184117907,0.08607128,118790.0,118780.0,0.35939838]
[1755184118115,0.08607128,118790.0,118780.0,0.36263838]
[1755184118291,0.08607128,118790.0,118780.0,0.43180838]
[1755184118530,0.00334803,118790.0,118780.0,0.43180838]
[1755184118742,0.00234803,118790.0,118780.0,1.0777674]
[1755184118957,0.00034803,118790.0,118780.0,1.0777674]
[1755184119173,0.00100001,118790.0,118780.0,1.0777674]
[1755184119596,1e-08,118790.0,118780.0,1.0777674]
[1755184120022,1e-08,118790.0,118780.0,1.0787674]
[1755184120435,1e-08,118790.0,118780.0,1.0797674]
[1755184120650,1e-08,118790.0,118780.0,1.09077487]
[1755184121267,1e-08,118790.0,118780.0,0.44381585]
[1755184121675,1e-08,118790.0,118780.0,0.43380838]
[1755184122296,1e-08,118790.0,118780.0,0.38582851]
[1755184122503,1e-08,118790.0,118780.0,0.38258851]
[1755184122708,1e-08,118790.0,118780.0,0.38582851]
[1755184123346,1e-08,118790.0,118780.0,1.03178753]
[1755184124800,1e-08,118790.0,118780.0,1.45451078]
[1755184125013,1e-08,118790.0,118780.0,1.55444423]
[1755184125839,1e-08,118790.0,118780.0,1.55244423]
[1755184126266,1e-08,118790.0,118780.0,1.55444423]
[1755184126899,1e-08,118790.0,118780.0,0.91048521]
[1755184127117,1e-08,118790.0,118780.0,1.59222148]
[1755184128408,1e-08,118790.0,118780.0,1.59422148]
[1755184128812,1e-08,118790.0,118780.0,1.59222148]
[1755184129024,1e-08,118790.0,118780.0,1.59322148]
[1755184129450,1e-08,118790.0,118780.0,1.61644966]
[1755184129668,1e-08,118790.0,118780.0,1.59530148]
[1755184130557,1e-08,118790.0,118780.0,0.94934246]
[1755184130807,1e-08,118790.0,118780.0,1.59530148]
[1755184132288,1e-08,118790.0,118780.0,0.94934246]
[1755184132490,1e-08,118790.0,118780.0,0.91016521]
[1755184132692,1e-08,118790.0,118780.0,1.55612423]
[1755184133117,0.00203001,118790.0,118780.0,0.72750851]
[1755184133344,0.00203001,118790.0,118780.0,0.72746851]
[1755184133552,0.00515001,118790.0,118780.0,0.65621851]
[1755184133770,0.00203001,118790.0,118780.0,0.65829851]
[1755184133989,0.00312001,118790.0,118780.0,0.31633851]
[1755184134430,0.08584326,118790.0,118780.0,0.31433851]
[1755184134853,0.08584326,118790.0,118780.0,0.31533851]
[1755184135104,0.08584326,118790.0,118780.0,0.31433851]
[1755184135261,0.08584326,118790.0,118780.0,0.31333851]
[1755184135973,0.08684326,118790.0,118780.0,0.31333851]
[1755184136383,0.08684326,118790.0,118780.0,0.36884907]
[1755184136789,0.08684326,118790.0,118780.0,0.31333851]
[1755184137567,0.00412001,118790.0,118780.0,0.31333851]
[1755184137774,0.00100001,118790.0,118780.0,0.31333851]
[1755184138319,0.00412001,118790.0,118780.0,0.31333851]
[1755184139283,0.00100001,118790.0,118780.0,0.31333851]
[1755184139483,0.00100001,118790.0,118780.0,0.39582294]
[1755184140904,0.00100001,118790.0,118780.0,1.04178196]
[1755184141150,1e-08,118790.0,118780.0,1.11419196]
[1755184141700,1e-08,118790.0,118780.0,1.53691521]
[1755184141928,1e-08,118790.0,118780.0,1.55436423]
[1755184142765,0.0046,118820.0,118810.0,0.16833599]
[1755184142975,0.0046,118820.0,118810.0,0.31345599]
[1755184143179,0.0046,118820.0,118810.0,0.36163536]
[1755184143628,0.0046,118820.0,118810.0,0.31345599]
[1755184144019,0.00148,118820.0,118810.0,0.31345599]
[1755184144214,0.0046,118820.0,118810.0,0.31345599]
[1755184144477,0.0046,118820.0,118810.0,0.31682399]
[1755184144677,0.08732325,118820.0,118810.0,0.17170399]
[1755184144916,0.25564508,118820.0,118810.0,0.31333599]
[1755184145088,0.08732325,118820.0,118810.0,0.31333599]
[1755184145852,0.08832325,118820.0,118810.0,0.31333599]
[1755184146060,0.09132325,118820.0,118810.0,0.31333599]
[1755184146756,0.09132325,118820.0,118810.0,0.16833599]
[1755184146935,0.09132325,118820.0,118810.0,0.31325599]
[1755184147134,0.09032325,118820.0,118810.0,0.31325599]
[1755184147555,0.09332325,118820.0,118810.0,0.31325599]
[1755184148041,0.09032325,118820.0,118810.0,0.36141536]
[1755184148246,0.08732325,118820.0,118810.0,0.31325599]
[1755184148476,0.08932325,118820.0,118810.0,0.31325599]
[1755184149033,0.09232325,118820.0,118810.0,0.31325599]
[1755184149261,0.00648,118820.0,118810.0,0.31325599]
[1755184150352,0.00448,118820.0,118810.0,0.3241975]
[1755184150577,0.00548,118820.0,118810.0,0.3241975]
[1755184150797,0.00869,118820.0,118810.0,0.3241975]
[1755184151047,0.00769,118820.0,118810.0,0.3241975]
[1755184151314,0.00469,118820.0,118810.0,0.37345102]
[1755184151738,0.00469,118820.0,118810.0,0.3241975]
[1755184152164,0.00148,118820.0,118810.0,0.3241975]
[1755184152387,0.00348,118820.0,118810.0,0.3241975]
[1755184152598,0.00148,118820.0,118810.0,0.3241975]
[1755184152810,0.00248,118820.0,118810.0,0.3241975]
[1755184153033,0.00248,118820.0,118810.0,0.37597662]
[1755184153640,0.00248,118820.0,118810.0,0.3241975]
[1755184154319,0.00248,118820.0,118810.0,0.31277599]
[1755184155025,0.00248,118820.0,118810.0,1.03198501]
[1755184155461,0.00248,118820.0,118810.0,1.04257722]
[1755184156679,0.00248,118820.0,118810.0,0.3966182]
[1755184157398,0.00248,118820.0,118810.0,0.43370863]
[1755184157588,0.00454,118820.0,118810.0,0.3954782]
[1755184157837,0.00775,118820.0,118810.0,0.3232482]
[1755184158681,0.00775,118820.0,118810.0,0.1789282]
[1755184158949,0.08841325,118820.0,118810.0,0.31325599]
[1755184159167,0.08841325,118820.0,118810.0,0.36394096]
[1755184159602,0.08841325,118820.0,118810.0,0.31325599]
[1755184160209,0.08841325,118820.0,118810.0,0.14492]
[1755184160210,0.25673508,118820.0,118810.0,0.14492]
[1755184160420,0.91844196,118820.0,118810.0,0.14492]
[1755184161204,0.16835016,118800.0,118780.0,0.25086294]
[1755184161462,0.25429759,118790.0,118770.0,0.40394385]
[1755184161665,0.25108759,118790.0,118780.0,0.31349851]
[1755184161870,0.08272325,118790.0,118780.0,0.31349851]
[1755184162201,0.08593325,118790.0,118780.0,0.31349851]
[1755184163005,0.08272325,118790.0,118780.0,0.31349851]
[1755184163630,0.08472325,118790.0,118780.0,0.31349851]
[1755184164417,0.08993325,118790.0,118780.0,0.31349851]
[1755184165012,0.08672325,118790.0,118780.0,0.31349851]
[1755184165223,0.004,118790.0,118780.0,0.38271635]
[1755184165455,0.004,118790.0,118780.0,0.31349851]
[1755184166589,0.004,118790.0,118780.0,0.38674851]
[1755184166795,0.004,118790.0,118780.0,1.03270753]
[1755184167217,0.004,118790.0,118780.0,0.38674851]
[1755184167433,0.004,118790.0,118780.0,1.03270753]
[1755184167676,0.00012457,118800.0,118790.0,0.16836434]
[1755184167892,0.00012457,118800.0,118790.0,0.88757336]
[1755184168301,0.00012457,118800.0,118790.0,1.22757336]
[1755184168519,0.00012457,118800.0,118790.0,1.31029661]
[1755184168742,0.00148,118820.0,118810.0,0.16833599]
[1755184168993,0.00148,118820.0,118810.0,0.34704337]
[1755184170256,0.08741325,118820.0,118810.0,0.31337599]
[1755184171772,0.08741325,118820.0,118810.0,0.31345599]
[1755184172194,0.08841325,118820.0,118810.0,0.31345599]
[1755184172408,0.08741325,118820.0,118810.0,0.31345599]
[1755184172616,0.09141325,118820.0,118810.0,0.31345599]
[1755184172836,0.08820325,118820.0,118810.0,0.36163537]
[1755184173049,0.08720325,118820.0,118810.0,0.36163537]
[1755184173270,0.00448,118820.0,118810.0,0.36163537]
[1755184173495,0.00648,118820.0,118810.0,1.00759439]
[1755184173703,0.00648,118820.0,118810.0,0.43488537]
[1755184174605,0.00448,118820.0,118810.0,0.43488537]
[1755184174812,0.00148,118820.0,118810.0,0.43488537]
[1755184175723,0.00348,118820.0,118810.0,0.43488537]
[1755184175915,0.00448,118820.0,118810.0,0.43175537]
[1755184176355,0.00448,118820.0,118810.0,0.44183697]
[1755184176584,0.00348,118820.0,118810.0,0.44183697]
[1755184176830,0.00654,118820.0,118810.0,0.16833599]
[1755184177056,0.00654,118820.0,118810.0,0.31285599]
[1755184178771,0.00454,118820.0,118810.0,0.31285599]
[1755184178989,0.00554,118820.0,118810.0,0.31285599]
[1755184179191,0.00248,118820.0,118810.0,0.36198691]
[1755184180904,0.00554,118820.0,118810.0,0.36198691]
[1755184181329,0.25658508,118820.0,118810.0,0.16833599]
[1755184181535,0.16833599,118810.0,118800.0,0.16834409]
[1755184181802,0.08272325,118810.0,118800.0,0.31314409]
[1755184182026,0.08578325,118810.0,118800.0,0.31314409]
[1755184182443,0.08578325,118810.0,118800.0,0.36213675]
[1755184182644,0.08272325,118810.0,118800.0,0.36213675]
[1755184183864,0.00454,118820.0,118810.0,0.16833599]
[1755184184020,0.08420325,118820.0,118810.0,0.16833599]
[1755184185211,0.2582151,118820.0,118800.0,0.16834409]
[1755184185420,0.08578325,118810.0,118800.0,0.16834409]
[1755184185621,0.25411924,118810.0,118790.0,0.17678255]
[1755184185820,0.17141016,118800.0,118780.0,0.16837851]
[1755184186027,0.08578325,118790.0,118780.0,0.16850308]
[1755184186223,0.25414759,118790.0,118780.0,0.16850308]
[1755184186478,0.25414759,118790.0,118780.0,0.14464457]
[1755184187275,0.25614759,118790.0,118780.0,0.14464457]
[1755184187532,0.25614759,118790.0,118780.0,0.00012457]
[1755184187533,0.91955563,118790.0,118780.0,0.00012457]
[1755184187730,1.25955563,118790.0,118780.0,0.00012457]
[1755184187941,1.26255563,118790.0,118780.0,0.00012457]
[1755184189078,0.16842105,118750.0,118730.0,0.1683829]
[1755184189280,0.25421848,118740.0,118730.0,0.16887485]
[1755184189486,0.08578325,118740.0,118730.0,0.31343485]
[1755184189873,0.08272325,118740.0,118730.0,0.31343485]
[1755184190683,0.08472325,118740.0,118730.0,0.31343485]
[1755184190999,0.08472325,118740.0,118730.0,0.36385473]
[1755184191923,0.002,118740.0,118730.0,0.42861473]
[1755184192285,0.002,118740.0,118730.0,0.38138485]
[1755184193446,0.25260288,118780.0,118750.0,0.16842105]
[1755184193599,0.08841438,118770.0,118760.0,0.31426314]
[1755184193961,0.25680707,118770.0,118760.0,0.3131943]
[1755184194166,0.08578325,118770.0,118760.0,0.3131943]
[1755184196158,0.08272325,118770.0,118760.0,0.33623429]
[1755184196375,0.08372325,118770.0,118760.0,0.3131943]
[1755184196953,0.08472325,118770.0,118760.0,0.3131943]
[1755184197175,0.08778325,118770.0,118760.0,0.3127543]
[1755184199486,0.25617594,118770.0,118760.0,0.3127543]
[1755184199691,0.25617594,118770.0,118760.0,0.14404]
[1755184199854,0.90213496,118770.0,118760.0,0.31244687]
[1755184200057,0.25617594,118770.0,118760.0,0.31244687]
[1755184202255,0.08778325,118770.0,118760.0,0.31244687]
[1755184202457,0.25880707,118770.0,118760.0,0.31244687]
[1755184202609,0.25617594,118770.0,118760.0,0.31244687]
[1755184203295,0.90213496,118770.0,118750.0,0.1768421]
[1755184203508,0.90213496,118770.0,118740.0,0.16842267]
[1755184203509,0.81742589,118760.0,118740.0,0.16842267]
[1755184203703,0.25955046,118760.0,118750.0,0.14356]
[1755184203997,0.90550948,118760.0,118750.0,0.14356]
[1755184204182,0.90856948,118760.0,118750.0,0.14356]
[1755184204550,0.16843523,118740.0,118730.0,0.17729732]
[1755184204768,0.25421848,118740.0,118730.0,0.32077732]
[1755184204959,0.25421848,118740.0,118730.0,0.14397195]
[1755184205430,0.9001775,118740.0,118730.0,0.14397195]
[1755184205626,0.25421848,118740.0,118730.0,0.31242137]
[1755184206057,0.25421848,118740.0,118730.0,0.31342137]
[1755184206255,0.08578325,118740.0,118730.0,0.31342137]
[1755184206393,0.08578325,118740.0,118730.0,0.31242137]
[1755184207025,0.08272325,118740.0,118730.0,0.3228988]
[1755184207221,0.09842009,118740.0,118730.0,0.31242137]
[1755184207437,0.35744902,118730.0,118690.0,0.06476]
[1755184207663,0.35744902,118730.0,118680.0,0.0004]
[1755184207664,0.16850619,118690.0,118680.0,0.0004]
[1755184207859,6.38385846,118690.0,118680.0,0.0004]
[1755184208221,0.50853459,118670.0,118660.0,0.27699234]
[1755184208423,1.2529123,118670.0,118660.0,0.27699234]
[1755184208631,0.64781928,118670.0,118660.0,0.27699234]
[1755184209181,0.64831201,118670.0,118660.0,0.27699234]
[1755184209587,0.09891142,118670.0,118660.0,0.44554113]
[1755184209791,0.09891142,118670.0,118660.0,0.59376556]
[1755184209972,0.01618817,118670.0,118660.0,0.59376556]
[1755184210170,0.00349273,118670.0,118660.0,0.59376556]
[1755184210578,0.00049273,118670.0,118660.0,0.34273234]
[1755184210783,0.66208869,118670.0,118660.0,0.50831113]
[1755184211208,0.01612967,118670.0,118660.0,0.51128113]
[1755184211784,0.01612967,118670.0,118660.0,0.85128113]